bitfinex/quotes_ETHUSD_20251010
["timestamp","ask_amount","ask_price","bid_price","bid_amount"]
[1760126461416,2.31097703,4011.2,4010.8,3.944]
[1760126461613,2.49325903,4010.9,4010.7,1.23]
[1760126461859,32.0207,4010.8,4010.7,1.23]
[1760126462782,35.14756817,4010.8,4010.7,1.23]
[1760126463314,3.1269925,4010.6,4010.5,0.002]
[1760126463546,3.1269925,4010.6,4010.1,8.612]
[1760126463547,51.64838239,4010.2,4010.1,8.612]
[1760126463956,51.74908239,4010.2,4010.1,8.612]
[1760126464360,49.25544118,4010.2,4010.1,8.612]
[1760126464960,52.38268239,4010.2,4010.1,8.612]
[1760126465177,0.6336,4009.7,4008.6,2.08]
[1760126465478,0.6336,4009.7,4008.9,3.94]
[1760126465479,31.92,4009.3,4008.9,3.94]
[1760126465663,32.1733,4009.3,4008.9,3.94]
[1760126466179,30.0,4009.1,4008.6,0.002]
[1760126466474,0.2533,4009.3,4009.0,5.169]
[1760126466475,1.92,4009.3,4009.0,5.169]
[1760126466677,30.0,4009.9,4009.0,5.169]
[1760126466864,1.92,4009.6,4009.0,5.169]
[1760126467060,1.92,4009.3,4009.0,5.169]
[1760126467262,30.0,4009.2,4009.0,1.23]
[1760126467461,32.0196,4009.1,4009.0,1.23]
[1760126468248,0.49083206,4009.1,4009.0,1.23]
[1760126468476,32.41083206,4009.1,4009.0,1.23]
[1760126468839,32.5395717,4009.1,4009.0,1.23]
[1760126469175,2.4399717,4009.1,4009.0,1.23]
[1760126469379,2.4399717,4009.1,4009.0,1.6709]
[1760126469544,2.4399717,4009.1,4009.0,1.23]
[1760126470670,2.04873964,4009.1,4009.0,1.23]
[1760126471040,1.92,4009.1,4009.0,1.6775]
[1760126471477,2.04392383,4009.1,4009.0,1.23]
[1760126472143,0.12392383,4009.1,4009.0,2.12089445]
[1760126472344,0.39119637,4009.4,4009.0,2.12089445]
[1760126472544,0.099,4011.5,4009.1,0.47244325]
[1760126472744,30.0,4011.4,4009.2,6.011]
[1760126472977,0.39113458,4010.7,4009.4,0.6336]
[1760126473143,0.12308132,4011.7,4009.9,2.49382473]
[1760126473343,0.099,4012.1,4010.0,6.03393765]
[1760126473556,30.0,4012.1,4010.1,0.4475]
[1760126473784,0.001,4012.7,4010.2,0.65853641]
[1760126473964,0.001,4012.7,4010.2,0.6336]
[1760126474279,0.001,4012.7,4010.4,0.6336]
[1760126474480,0.001,4012.7,4010.6,0.6336]
[1760126474981,30.0,4012.1,4010.7,0.4475]
[1760126475152,30.0,4012.1,4010.1,0.4475]
[1760126475490,1.92,4011.6,4010.2,2.363]
[1760126475690,1.92,4011.4,4010.2,2.363]
[1760126475987,30.0,4011.8,4010.3,0.4475]
[1760126476185,1.92,4011.5,4010.4,6.014]
[1760126476416,0.0995,4012.0,4010.4,6.014]
[1760126476694,1.92,4011.8,4010.5,0.46613454]
[1760126476979,0.12791661,4012.2,4010.6,0.6336]
[1760126477184,0.001,4012.2,4010.8,0.6336]
[1760126477478,0.001,4012.2,4011.0,0.6336]
[1760126477992,0.001,4012.2,4011.1,6.4522]
[1760126478193,0.001,4012.2,4011.2,3.932]
[1760126478356,0.39089523,4012.0,4011.2,6.44832]
[1760126478890,0.12756387,4012.2,4011.3,0.4412]
[1760126479697,1.92,4012.0,4011.4,2.079]
[1760126479876,1.92,4012.0,4011.5,6.009]
[1760126480211,0.12756387,4012.2,4011.6,2.079]
[1760126480418,0.51850693,4012.2,4011.6,2.1039277]
[1760126480604,0.51850693,4012.2,4011.6,2.079]
[1760126481812,0.12756387,4012.2,4011.7,0.02492708]
[1760126482014,0.001,4012.2,4012.1,0.2284]
[1760126482186,0.001,4012.2,4012.1,4.5956]
[1760126483238,0.001,4012.2,4011.5,0.4412]
[1760126483441,0.001,4012.2,4011.9,0.4412]
[1760126483786,0.001,4012.2,4012.0,0.46612522]
[1760126483994,0.001,4012.7,4012.1,3.923]
[1760126484337,0.001,4012.7,4012.2,0.46134398]
[1760126484493,0.001,4012.7,4012.6,3.12574972]
[1760126484698,0.001,4012.7,4012.6,9.15367121]
[1760126485028,0.001,4012.7,4012.6,6.4442]
[1760126485239,0.001,4012.7,4012.6,8.93634972]
[1760126485403,0.001,4012.7,4012.6,9.82998469]
[1760126485604,0.001,4012.7,4012.6,10.46358469]
[1760126485804,0.001,4015.1,4013.0,3.12550132]
[1760126486019,0.001,4015.1,4013.1,3.12543922]
[1760126486223,0.001,4015.1,4013.5,2.49158102]
[1760126486400,0.001,4015.1,4013.7,0.6336]
[1760126486401,0.12573565,4015.1,4013.7,0.6336]
[1760126486737,0.12573565,4015.1,4013.6,12.7511581]
[1760126486738,0.001,4015.1,4014.4,2.49097645]
[1760126487030,0.001,4015.1,4014.5,6.006]
[1760126487232,0.001,4015.1,4014.6,3.95190908]
[1760126487398,0.001,4015.1,4015.0,3.12426002]
[1760126487599,0.001,4015.1,4015.0,3.68576443]
[1760126487811,0.001,4015.1,4015.0,4.12696443]
[1760126488009,0.001,4015.1,4015.0,8.05696443]
[1760126488649,0.001,4015.1,4015.0,9.97696443]
[1760126490351,0.001,4016.0,4015.1,0.6336]
[1760126490553,0.001,4016.0,4015.9,0.6336]
[1760126490757,0.001,4016.0,4015.9,15.62070184]
[1760126490918,0.001,4016.0,4015.9,16.06190184]
[1760126491923,0.001,4016.0,4015.9,3.56490184]
[1760126492146,0.001,4016.0,4015.9,16.05890184]
[1760126492373,0.001,4016.0,4015.9,19.83381287]
[1760126492664,0.001,4016.0,4015.9,19.83181287]
[1760126493429,0.001,4016.0,4015.9,37.22489723]
[1760126493774,0.001,4018.6,4017.6,2.48899128]
[1760126494070,0.001,4018.6,4018.5,0.2284]
[1760126494273,0.001,4018.6,4018.5,6.2274]
[1760126494586,0.001,4018.6,4018.5,3.921]
[1760126494757,1.92,4018.4,4016.8,0.4412]
[1760126494937,1.92,4018.1,4016.8,0.4412]
[1760126495263,1.92,4017.5,4016.9,2.604]
[1760126495491,1.92,4017.5,4017.0,0.528]
[1760126495492,1.92,4017.2,4017.0,0.528]
[1760126495627,9.343,4017.4,4017.0,0.528]
[1760126495832,1.92,4017.6,4016.2,0.4412]
[1760126496134,0.001,4018.6,4017.1,2.4893047]
[1760126496482,0.001,4018.6,4017.2,3.1052]
[1760126496641,0.001,4018.6,4017.3,0.65849234]
[1760126496845,0.001,4018.6,4018.5,0.2284]
[1760126497042,0.001,4018.6,4018.5,6.2274]
[1760126497242,0.001,4018.6,4018.5,5.999]
[1760126497658,0.001,4018.6,4018.5,6.4402]
[1760126498136,0.1171037,4018.9,4018.5,6.4402]
[1760126498440,0.001,4019.1,4018.6,0.4412]
[1760126498645,0.001,4019.1,4018.3,0.2284]
[1760126498646,0.001,4019.1,4018.7,5.997]
[1760126498847,0.001,4019.1,4018.8,5.997]
[1760126499065,0.001,4019.1,4018.1,0.4412]
[1760126499364,0.001,4019.1,4018.4,0.4412]
[1760126499935,0.001,4019.1,4018.5,5.997]
[1760126500347,0.12344486,4019.1,4018.5,5.997]
[1760126500553,0.12344486,4019.1,4018.6,1.08502]
[1760126500554,0.001,4019.1,4018.6,1.08502]
[1760126500749,0.001,4019.1,4018.7,3.919]
[1760126500949,0.001,4019.1,4018.7,5.995]
[1760126501139,0.001,4019.1,4018.8,0.02488304]
[1760126501775,0.001,4019.1,4018.7,5.995]
[1760126501962,1.921,4019.1,4018.8,5.991]
[1760126502482,1.921,4019.1,4018.2,0.4412]
[1760126502666,1.921,4019.1,4017.9,0.2284]
[1760126502885,0.001,4019.1,4018.0,2.272]
[1760126503080,0.001,4019.1,4018.1,0.02488738]
[1760126503657,0.001,4019.1,4018.2,0.69372874]
[1760126503864,0.001,4019.1,4018.3,0.02488614]
[1760126504058,0.001,4019.1,4018.6,2.48838527]
[1760126504291,0.001,4019.1,4018.7,6.40136073]
[1760126504472,0.001,4019.1,4018.8,2.075]
[1760126504677,0.001,4019.1,4018.9,0.5988]
[1760126504964,0.001,4019.1,4018.9,1.04]
[1760126505220,0.001,4019.1,4019.0,0.4412]
[1760126506279,0.001,4019.1,4019.0,6.4292]
[1760126506473,0.001,4019.1,4019.0,8.91738113]
[1760126506667,0.001,4019.1,4019.0,10.11782892]
[1760126507279,0.001,4019.1,4019.0,10.75142892]
[1760126507578,0.001,4019.1,4019.0,2.27524779]
[1760126507888,0.001,4019.1,4019.0,8.91538113]
[1760126508089,0.001,4019.1,4019.0,9.54898113]
[1760126508490,0.001,4019.1,4019.0,11.46898113]
[1760126508694,0.001,4019.2,4019.0,11.46898113]
[1760126509038,0.001,4019.2,4019.1,5.53420042]
[1760126509224,0.001,4019.3,4019.1,5.53420042]
[1760126509225,0.001,4019.3,4019.2,5.04165732]
[1760126509365,0.001,4019.7,4019.6,3.12140973]
[1760126509566,0.001,4019.7,4019.6,0.6336]
[1760126509767,0.001,4019.7,4019.6,9.60488782]
[1760126509968,0.001,4019.7,4019.6,9.58000973]
[1760126510189,0.001,4019.7,4019.6,13.35520315]
[1760126510415,0.001,4019.7,4019.6,4.81060315]
[1760126510713,0.001,4019.7,4019.6,9.57900973]
[1760126510915,0.001,4019.7,4019.6,0.4676]
[1760126511207,0.001,4019.7,4019.6,6.4566]
[1760126511407,0.001,4019.7,4019.6,3.4836]
[1760126511808,0.001,4019.7,4019.6,5.99628782]
[1760126511967,0.001,4019.7,4019.6,6.81982899]
[1760126512173,0.001,4019.7,4019.6,1.31601926]
[1760126512382,0.001,4019.7,4019.2,0.4676]
[1760126512583,0.001,4019.7,4019.5,0.4676]
[1760126512827,0.001,4019.7,4019.0,0.4676]
[1760126513115,0.001,4019.7,4019.1,2.63]
[1760126513619,0.39114127,4019.7,4019.2,0.02488057]
[1760126513772,0.001,4019.7,4019.3,0.73308806]
[1760126513971,0.001,4019.7,4018.2,8.97163815]
[1760126513972,0.001,4019.7,4018.1,2.48873625]
[1760126514179,0.001,4019.7,4019.3,0.4676]
[1760126514385,0.001,4019.7,4019.4,5.685]
[1760126514603,0.001,4019.7,4019.5,0.02487871]
[1760126514807,0.001,4019.7,4019.5,0.49247871]
[1760126515004,0.001,4019.7,4018.7,0.4676]
[1760126515177,0.001,4019.7,4018.8,4.264]
[1760126515381,1.92,4019.5,4018.9,2.074]
[1760126515579,2.48824444,4018.9,4017.9,3.908]
[1760126515808,1.92,4018.1,4017.9,3.908]
[1760126516012,1.92,4018.1,4016.9,0.4676]
[1760126516319,1.92,4018.1,4017.0,5.983]
[1760126516476,1.92,4018.1,4017.1,0.64506]
[1760126516678,7.161,4018.6,4017.1,0.64506]
[1760126516876,11.92,4018.1,4017.2,3.909]
[1760126517080,1.92,4018.1,4017.3,5.982]
[1760126517310,1.92,4018.5,4017.4,5.982]
[1760126517511,1.92,4018.5,4017.5,3.908]
[1760126517512,1.92,4018.1,4017.5,3.908]
[1760126517724,11.92,4018.1,4016.1,0.2284]
[1760126518014,1.92,4017.9,4016.3,6.9506]
[1760126518177,1.92,4017.5,4016.3,0.4676]
[1760126518381,1.92,4017.3,4016.3,0.4676]
[1760126518620,1.92,4017.5,4016.3,0.4676]
[1760126518825,1.92,4016.9,4016.4,2.911]
[1760126519183,1.92,4016.9,4016.5,5.981]
[1760126519406,1.92,4016.9,4016.6,3.907]
[1760126519606,0.39043549,4017.3,4016.7,6.00489605]
[1760126519809,0.39043549,4017.3,4016.8,0.02489543]
[1760126520085,0.39043549,4017.3,4016.8,0.4676]
[1760126520420,1.92,4016.9,4016.0,0.002]
[1760126520626,1.92,4016.3,4016.0,2.483]
[1760126520833,0.1012,4016.2,4016.0,2.483]
[1760126520986,22.526,4016.1,4016.0,0.002]
[1760126521723,22.526,4016.1,4015.5,2.076]
[1760126521724,31.92,4016.0,4015.5,0.002]
[1760126521893,31.92,4016.0,4015.1,0.002]
[1760126521894,2.49053596,4015.2,4015.1,0.002]
[1760126522087,1.92,4015.0,4014.6,0.003]
[1760126522290,30.0,4014.6,4013.9,2.075]
[1760126522605,1.92,4013.8,4013.6,3.887]
[1760126522802,1.92,4013.8,4012.0,0.2145]
[1760126522992,1.92,4013.1,4012.1,2.075]
[1760126523193,0.6336,4013.9,4012.2,2.145]
[1760126523398,1.92,4013.2,4012.3,0.02492336]
[1760126523600,1.92,4013.2,4012.2,2.145]
[1760126523795,2.04751387,4013.2,4012.2,2.145]
[1760126524290,2.04751387,4013.2,4012.3,0.02492336]
[1760126524489,2.04751387,4013.2,4012.2,2.145]
[1760126524722,1.92,4012.6,4012.0,2.075]
[1760126524909,1.92,4012.6,4012.0,3.908]
[1760126525105,1.92,4012.9,4012.1,0.0249246]
[1760126525306,1.92,4012.9,4012.1,0.67247706]
[1760126525508,0.12751387,4013.2,4012.2,0.4676]
[1760126525708,1.92,4013.4,4012.0,3.908]
[1760126525997,30.0,4013.0,4011.6,0.4676]
[1760126526211,30.0,4012.8,4011.7,2.546]
[1760126526412,2.49193368,4013.0,4011.8,3.907]
[1760126526618,30.0,4012.9,4011.9,3.907]
[1760126526856,1.92,4012.6,4011.1,0.4676]
[1760126527002,1.92,4012.6,4010.9,0.2145]
[1760126527003,11.92,4012.4,4011.2,2.075]
[1760126527204,1.92,4012.1,4011.2,2.545]
[1760126527515,0.099,4012.3,4011.2,2.545]
[1760126527712,1.92,4012.0,4010.5,0.4676]
[1760126528050,2.1157,4011.9,4010.1,0.2145]
[1760126528218,2.1157,4011.9,4010.6,2.076]
[1760126528219,1.92,4011.5,4010.6,2.076]
[1760126528416,1.92,4011.4,4010.7,2.2359333]
[1760126528636,1.92,4011.7,4010.8,2.076]
[1760126528841,14.97355642,4012.1,4010.8,2.076]
[1760126528842,1.92,4012.0,4010.9,0.02493206]
[1760126529042,0.39089061,4011.8,4010.9,0.02493206]
[1760126529906,0.39089061,4011.8,4010.9,0.29528527]
[1760126530107,5.16,4012.5,4010.9,0.29528527]
[1760126530303,0.390884,4012.1,4010.9,0.29528527]
[1760126530521,0.390884,4012.1,4011.0,0.4676]
[1760126530810,2.076,4012.9,4011.0,0.4676]
[1760126530811,7.561,4013.0,4011.2,2.49301865]
[1760126531007,0.39086144,4012.6,4011.3,0.78859143]
[1760126531235,0.39086144,4012.6,4011.4,0.4676]
[1760126531439,2.076,4014.8,4012.5,0.2145]
[1760126531607,2.076,4014.8,4012.6,8.17467121]
[1760126531810,0.39080891,4014.3,4012.8,2.49198141]
[1760126532011,0.39080891,4014.3,4013.4,2.49159284]
[1760126532266,0.39080891,4014.3,4013.5,5.987]
[1760126532549,0.39080891,4014.3,4013.6,6.47951528]
[1760126532709,10.0,4015.7,4012.4,7.1236]
[1760126532710,30.0,4016.5,4014.2,0.2145]
[1760126532908,0.39064619,4015.5,4014.3,0.02491094]
[1760126533108,0.39064619,4015.5,4013.4,0.4676]
[1760126533109,1.92,4015.2,4013.4,0.4676]
[1760126533321,0.0998,4015.1,4011.9,1.92]
[1760126533521,0.1552,4015.4,4010.9,2.76349759]
[1760126533522,0.6336,4014.7,4012.8,0.4676]
[1760126533743,0.6336,4014.7,4010.9,0.27035321]
[1760126533744,32.5536,4014.1,4012.9,2.077]
[1760126533930,32.4914236,4013.8,4012.8,2.479]
[1760126534145,2.4917067,4013.4,4011.3,0.4676]
[1760126534336,1.92,4013.0,4011.3,0.4676]
[1760126534519,1.92,4012.8,4011.4,2.512]
[1760126534721,1.92,4013.1,4011.5,0.29796]
[1760126534932,1.92,4012.9,4011.6,0.0249277]
[1760126535157,1.92,4013.0,4011.6,0.4925277]
[1760126535515,1.92,4012.8,4011.5,0.29796]
[1760126535715,1.92,4012.8,4011.6,5.991]
[1760126535910,1.92,4012.9,4011.6,5.991]
[1760126536151,3.938,4012.8,4011.0,0.4676]
[1760126536452,6.19,4012.8,4011.1,12.482]
[1760126536754,4.41190487,4013.0,4011.1,12.482]
[1760126536924,2.70455927,4013.8,4011.1,12.482]
[1760126536925,14.97355642,4014.2,4011.2,0.46763019]
[1760126537115,3.914,4014.1,4011.3,0.6336]
[1760126537315,2.49085944,4014.7,4011.3,0.6336]
[1760126537316,30.0,4014.7,4012.4,2.49221187]
[1760126537514,0.39072401,4014.3,4012.5,9.1526841]
[1760126537760,0.39072401,4014.3,4012.7,2.49208605]
[1760126537912,0.39072401,4014.3,4012.8,1.38287886]
[1760126538114,0.39072401,4014.3,4012.9,6.1477]
[1760126538662,0.39072401,4014.3,4013.0,2.95946745]
[1760126538827,0.39072401,4014.3,4013.0,2.51676745]
[1760126539021,0.39072401,4014.3,4013.1,0.4427]
[1760126539221,0.39072401,4014.3,4013.2,0.6172619]
[1760126539420,1.92,4014.1,4012.6,2.077]
[1760126539626,1.92,4013.8,4012.6,2.077]
[1760126539821,1.92,4013.9,4012.6,2.077]
[1760126540034,2.31081001,4013.8,4012.6,2.077]
[1760126540238,2.31081001,4013.8,4012.6,2.5197]
[1760126540239,0.39081001,4013.8,4012.6,2.5197]
[1760126540460,0.39081001,4013.8,4012.6,3.16377]
[1760126541144,0.39081001,4013.8,4012.6,1.08677]
[1760126541356,0.39081001,4013.8,4012.7,5.996]
[1760126542082,1.92,4014.8,4012.8,0.46762025]
[1760126542249,1.92,4014.5,4012.8,2.95959494]
[1760126542449,0.39078488,4014.3,4012.9,0.4427]
[1760126542651,0.39078488,4014.3,4013.0,0.02491901]
[1760126542984,0.39078488,4014.3,4013.1,0.29595937]
[1760126543155,0.39078488,4014.3,4013.2,0.02491777]
[1760126543358,30.0,4014.2,4012.1,0.2188]
[1760126543583,23.467,4014.0,4012.3,0.4427]
[1760126543893,10.262,4014.0,4012.4,0.34907273]
[1760126544216,1.92,4014.4,4012.6,2.49213504]
[1760126544411,1.92,4014.4,4012.5,0.4427]
[1760126544412,1.92,4014.4,4012.7,0.46762087]
[1760126544549,1.92,4014.5,4012.7,0.46762087]
[1760126544752,1.92,4014.4,4012.7,0.46762087]
[1760126544972,1.92,4014.2,4012.7,0.4427]
[1760126545173,2.215,4013.9,4012.7,0.4427]
[1760126545489,14.97355642,4012.8,4011.7,2.077]
[1760126545663,1.92,4012.3,4011.4,3.912]
[1760126545864,1.92,4012.0,4011.2,3.911]
[1760126546069,2.0243,4012.3,4011.2,3.911]
[1760126546265,30.70215732,4012.6,4011.3,0.02492957]
[1760126546456,1.92,4012.6,4011.3,0.64556296]
[1760126546653,23.105,4013.1,4011.4,0.4427]
[1760126546858,4.5446,4013.3,4011.5,3.46492833]
[1760126546859,10.0,4012.9,4011.5,3.46492833]
[1760126547094,1.92,4013.2,4011.6,2.077]
[1760126547300,1.92,4012.8,4011.6,2.077]
[1760126547475,1.92,4012.9,4011.7,0.02492708]
[1760126547670,2.49118698,4014.2,4011.7,0.46762708]
[1760126547981,3.292,4014.0,4011.7,0.4427]
[1760126548182,22.714,4014.5,4012.4,2.49221747]
[1760126548380,1.92,4014.4,4012.5,7.74860784]
[1760126548586,14.97355642,4015.5,4012.7,2.49208762]
[1760126548785,5.59609086,4016.3,4012.7,2.49208762]
[1760126548786,6.092,4015.3,4012.8,0.4427]
[1760126548990,19.578,4015.2,4012.9,2.10191963]
[1760126549167,0.39071508,4014.7,4013.2,2.49171647]
[1760126549362,0.39071508,4014.7,4013.3,0.02491715]
[1760126549584,0.39071508,4014.7,4013.4,0.69436336]
[1760126549869,0.39071508,4014.7,4013.5,0.4676159]
[1760126550085,2.31071508,4014.7,4013.4,0.25166336]
[1760126550402,30.0,4014.6,4012.8,0.4427]
[1760126550606,11.92,4014.5,4012.9,2.363]
[1760126550764,1.92,4014.4,4012.9,2.363]
[1760126550965,1.92,4014.8,4012.9,2.363]
[1760126551284,0.39076449,4014.3,4012.9,2.363]
[1760126551487,0.39076449,4014.3,4013.0,0.28057]
[1760126551799,0.001,4015.1,4013.3,2.49170594]
[1760126551965,0.39173373,4015.1,4013.3,2.49170594]
[1760126552158,30.0,4014.8,4013.4,0.4427]
[1760126552370,30.0,4014.6,4013.4,2.615]
[1760126552584,1.92,4014.4,4013.4,2.615]
[1760126552786,1.92,4014.6,4013.4,2.615]
[1760126553098,2.5546,4015.1,4013.4,2.615]
[1760126553268,0.001,4015.1,4013.5,0.74847]
[1760126553593,0.39173274,4015.1,4013.5,0.74847]
[1760126553758,1.92,4014.9,4013.5,0.74847]
[1760126553962,1.92,4014.8,4013.5,0.74847]
[1760126554163,0.001,4015.1,4013.5,0.74847]
[1760126554395,0.001,4015.1,4013.6,0.58551781]
[1760126556106,0.001,4015.1,4015.0,0.2188]
[1760126556325,0.001,4015.1,4015.0,6.2008]
[1760126556472,0.001,4015.1,4015.0,6.6435]
[1760126557080,0.001,4015.1,4014.5,14.5]
[1760126557281,0.001,4015.1,4014.6,5.983]
[1760126557603,0.001,4015.1,4014.7,0.5983]
[1760126557805,0.001,4015.1,4014.7,0.4427]
[1760126558109,0.001,4015.1,4009.8,1.35425292]
[1760126558110,0.001,4015.1,4014.6,2.077]
[1760126558297,0.001,4015.1,4014.6,5.981]
[1760126558801,0.39070537,4015.0,4014.6,5.981]
[1760126560405,0.39070537,4015.0,4014.7,0.02490846]
[1760126560612,0.001,4015.1,4014.8,0.4427]
[1760126560914,0.001,4015.1,4014.9,0.02490722]
[1760126561408,0.001,4015.1,4015.0,0.4427]
[1760126561782,0.001,4015.1,4015.0,0.4676066]
[1760126561985,0.001,4015.1,4015.0,3.59186662]
[1760126562293,0.001,4015.6,4015.5,3.12394989]
[1760126562495,0.001,4015.6,4015.5,9.12685338]
[1760126562696,2.077,4018.9,4016.7,2.48957791]
[1760126563004,2.077,4018.9,4016.8,21.16439543]
[1760126563005,0.39049238,4018.4,4016.8,21.16439543]
[1760126563205,0.1282,4019.8,4016.9,4.63019481]
[1760126563509,30.0,4019.5,4017.0,8.42489948]
[1760126563705,0.099,4019.6,4017.1,0.4427]
[1760126563706,1.92,4019.2,4017.1,0.4427]
[1760126564007,0.099,4019.6,4017.2,14.5]
[1760126564008,1.92,4019.5,4017.2,14.5]
[1760126564169,30.12792176,4019.5,4017.2,14.5]
[1760126564371,1.92,4019.2,4017.3,5.977]
[1760126564582,1.92,4018.4,4017.3,5.977]
[1760126564781,2.48843569,4018.6,4017.3,5.977]
[1760126565112,30.0,4018.1,4017.4,2.076]
[1760126565316,0.6336,4017.7,4015.6,0.6615]
[1760126565484,30.0,4017.9,4015.7,3.161]
[1760126565485,0.6336,4017.2,4015.7,3.161]
[1760126565809,1.92,4017.5,4015.8,6.44360163]
[1760126566009,1.92,4017.0,4015.9,6.00090101]
[1760126566211,1.92,4016.6,4016.0,6.00090039]
[1760126566512,4.40936086,4017.1,4016.1,6.00089977]
[1760126566733,30.0,4016.9,4016.2,2.10089915]
[1760126566918,1.92,4016.6,4016.2,2.10089915]
[1760126567207,21.676,4016.7,4014.5,0.4735]
[1760126567208,30.0,4016.4,4014.5,0.4735]
[1760126567408,30.0,4016.6,4015.1,0.4735]
[1760126567612,1.92,4016.3,4015.1,0.4735]
[1760126567801,30.0,4016.2,4015.2,5.462]
[1760126568200,30.0,4016.0,4014.4,0.4735]
[1760126568414,1.92,4015.7,4014.5,5.976]
[1760126568707,30.0,4015.8,4014.6,0.64495]
[1760126568902,1.92,4016.0,4014.6,0.64495]
[1760126569105,0.39059753,4016.3,4015.0,2.49064861]
[1760126569298,0.39059753,4016.3,4015.1,3.9]
[1760126569504,0.39059753,4016.3,4015.2,14.95710535]
[1760126569675,0.39059753,4016.3,4015.3,4.2107754]
[1760126569876,0.39059753,4016.3,4014.5,0.4322]
[1760126569877,30.0,4015.9,4014.5,0.4322]
[1760126570080,10.0,4015.6,4014.6,2.42]
[1760126570309,1.92,4015.3,4014.6,2.42]
[1760126570519,30.0,4015.4,4014.6,2.42]
[1760126570520,2.31064406,4015.4,4014.6,2.42]
[1760126570728,1.92,4015.2,4014.6,2.42]
[1760126570914,4.41078815,4014.8,4014.6,2.42]
[1760126571225,4.41078815,4014.8,4014.1,3.9]
[1760126571226,1.92,4014.6,4014.1,3.9]
[1760126571414,1.92,4014.5,4014.1,3.9]
[1760126571611,0.1023,4014.5,4014.1,3.9]
[1760126571828,0.39058363,4014.5,4014.1,3.9]
[1760126572032,0.51687324,4014.5,4014.2,0.4322]
[1760126572196,0.12628961,4014.5,4014.1,4.4976]
[1760126572392,0.2561,4015.9,4014.2,0.4322]
[1760126572393,0.39069093,4015.1,4014.2,0.4322]
[1760126572724,0.39069093,4015.1,4014.3,0.02491094]
[1760126572890,0.39069093,4015.1,4014.2,0.669]
[1760126572891,0.51448733,4015.1,4014.4,0.51915109]
[1760126573418,0.51448733,4015.1,4014.2,0.4322]
[1760126573612,0.51448733,4015.1,4014.4,14.5]
[1760126573925,1.92,4014.8,4014.5,5.976]
[1760126574249,0.1237964,4015.1,4014.6,3.9]
[1760126574523,1.92,4015.7,4014.6,3.9]
[1760126574690,2.48993434,4016.2,4014.6,3.9]
[1760126574890,1.92,4015.8,4014.6,4.54082]
[1760126575097,0.12339548,4015.8,4014.6,4.54082]
[1760126575293,1.92,4016.3,4014.6,0.64082]
[1760126575505,10.2545,4016.4,4014.4,14.9322]
[1760126575506,2.49034245,4015.6,4014.7,5.976]
[1760126575705,0.6336,4016.3,4014.7,5.976]
[1760126575907,1.92,4015.9,4014.8,0.4322]
[1760126576111,2.04268134,4015.9,4014.8,0.4322]
[1760126576426,2.04268134,4015.9,4014.9,0.02490722]
[1760126576427,0.12268134,4015.9,4014.9,0.02490722]
[1760126576627,10.001,4016.8,4015.0,0.4322]
[1760126576828,1.92,4016.5,4015.0,0.4322]
[1760126577014,10.0,4016.3,4015.0,14.9322]
[1760126577328,30.0,4016.3,4015.0,14.9322]
[1760126577519,2.48980949,4016.4,4015.0,14.9322]
[1760126577824,1.92,4016.5,4015.0,14.9322]
[1760126578038,10.0,4016.3,4015.1,1.31446351]
[1760126578241,0.12583628,4016.8,4015.2,4.3322]
[1760126578406,0.001,4016.8,4015.9,2.49007739]
[1760126578603,0.001,4016.8,4016.0,6.43310039]
[1760126578803,0.001,4016.8,4016.1,5.976]
[1760126579042,0.001,4016.8,4016.2,15.41472908]
[1760126579232,0.001,4016.8,4016.2,15.82202993]
[1760126579437,0.001,4016.8,4016.3,3.9]
[1760126579731,0.001,4016.8,4016.4,2.076]
[1760126579932,0.001,4016.8,4015.4,6.9212]
[1760126579933,0.001,4016.8,4016.5,3.9]
[1760126580135,0.001,4016.8,4016.6,3.9]
[1760126580336,0.001,4016.8,4015.5,14.9322]
[1760126580641,0.39154964,4016.8,4015.6,5.976]
[1760126580947,0.39154964,4016.8,4015.5,15.56947346]
[1760126580948,0.39154964,4016.8,4015.5,14.9322]
[1760126581116,0.39154964,4016.8,4015.6,6.00090287]
[1760126581117,1.92,4016.4,4015.6,6.00090287]
[1760126581323,0.39154964,4016.8,4015.7,3.9]
[1760126581642,0.001,4016.8,4015.8,0.02490163]
[1760126581847,0.001,4016.8,4015.9,0.4322]
[1760126582018,0.32640112,4018.0,4016.0,0.6336]
[1760126582216,0.32640112,4018.0,4016.2,0.6336]
[1760126582529,0.39043539,4018.5,4016.7,2.48954507]
[1760126582729,0.39043539,4018.5,4017.1,2.4893549]
[1760126582932,0.39043539,4018.5,4017.2,0.68113549]
[1760126583118,0.39043539,4018.5,4017.3,4.36209234]
[1760126583320,0.39043539,4018.5,4017.4,4.3372]
[1760126583561,0.12688353,4019.1,4017.4,4.3372]
[1760126583931,1.921,4019.7,4017.5,0.4322]
[1760126583932,1.92,4019.2,4017.5,0.4322]
[1760126584109,1.92,4019.1,4017.6,2.076]
[1760126584311,1.92,4019.3,4017.7,1.07352]